Cogmind - Beta 13 @@@ ROGUE MODE // 2024.06.15 @ 16:13:58 Player: QXander Result: Destroyed by G-47 Trooper with Particle Gun Performance ------------- Evolutions (2) 1000 Regions Visited (3) 600 Robots Destroyed (55) 275 Value Destroyed (1559) 1559 Prototype IDs (1) 20 Alien Tech Used (0) 0 Bonus (59) 59 TOTAL SCORE: 3513 Bonus ------- High Alert Combat Kills 59 Cogmind --------- Core Integrity 0/550 Matter 250/300 Energy 19/100 System Corruption 23% Temperature Cool (9) Movement Hovering (120) Ox1 Location -8/Materials Parts ------- > --- POWER (1) -------- (None) > --- PROPULSION (4) --- Airjet > --- UTILITY (4) ------ Heat Sink Medium Armor Plating > --- WEAPON (2) ------- Beam Rifle > --- INVENTORY (5) ---- Medium Armor Plating Hardened Light Armor Plating Peak State ------------ > --- POWER ------------ Improved Ion Engine > --- PROPULSION ------- Aluminum Leg Aluminum Leg Aluminum Leg Aluminum Leg > --- UTILITY ---------- Medium Storage Unit Improved Signal Interpreter Improved Targeting Computer Advanced Targeting Computer > --- WEAPON ----------- Particle Gun High-powered Shotgun > --- INVENTORY -------- Ion Engine Light Ion Engine Aluminum Leg Heat Sink Medium Armor Plating Medium Armor Plating Hardened Light Armor Plating Beam Rifle [Rating: 21] Favorites ----------- Power Ion Engine Engine Ion Engine Power Core Light Nuclear Core Propulsion Aluminum Leg Leg Aluminum Leg Hover Unit Airjet Utility Heat Sink Device Heat Sink Storage Small Storage Unit Processor Improved Targeting Computer Protection Hardened Light Armor Plating Weapon Beam Rifle Energy Gun Beam Rifle Energy Cannon Beam Cannon Ballistic Gun High-powered Shotgun Launcher Shock Bomb Launcher Slashing Weapon Katana Build | -11 -10 -9 -8 ------- Run | Yrd Mat Mat Mat Slots Evolved 4 | . . 2 2 Power . | . . . . Propulsion 2 | . . 2 . Utility 2 | . . . 2 Weapon . | . . . . Parts Attached 60 | 6 9 22 23 Power 9 | 1 2 2 4 Engine 8 | 1 1 2 4 Core 1 | . 1 . . Reactor . | . . . . Propulsion 21 | 2 2 13 4 Treads . | . . . . Leg 20 | 2 2 13 3 Wheel . | . . . . Hover 1 | . . . 1 Flight . | . . . . Utility 11 | 1 1 2 7 Device 2 | . 1 . 1 Storage 2 | 1 . 1 . Processor 5 | . . 1 4 Hackware . | . . . . Protection 2 | . . . 2 Artifact . | . . . . Weapon 19 | 2 4 5 8 Energy Gun 12 | 1 3 2 6 Energy Cannon 1 | . 1 . . Ballistic Gun 4 | 1 . 2 1 Ballistic Cannon . | . . . . Launcher 1 | . . 1 . Special Weapon . | . . . . Impact Weapon . | . . . . Slashing Weapon 1 | . . . 1 Piercing Weapon . | . . . . Special Melee Weapon . | . . . . Unidentified Prototypes 1 | . . . 1 Corrupted Parts 4 | . 1 1 2 System Corruption 22 | . 5 9 8 Parts Lost 20 | . 1 4 15 Power 2 | . 1 . 1 Propulsion 8 | . . 4 4 Utility 3 | . . . 3 Weapon 7 | . . . 7 Highest Loss Streak 13 | . 1 3 13 To Critical Strikes . | . . . . Average Slot Usage (%) 95 | . 98 99 86 Engine 9 | . 10 11 7 Leg 34 | . 28 43 30 Device 8 | . 13 10 . Storage 10 | . 14 10 7 Processor 5 | . . . 18 Protection 1 | . . . 4 Energy Gun 12 | . 20 10 6 Energy Cannon 1 | . 5 . . Ballistic Gun 4 | . . 5 6 Launcher 3 | . . 6 2 Naked Turns 28 | . . . 28 Heaviest Build 29 | 14 17 25 29 Greatest Support 40 | 20 20 40 40 Greatest Overweight (x) 4 | 3 . . 4 Average Overweight (x) . | . . . . Largest Inventory Capacity 10 | 8 8 10 10 Average Capacity 8 | 7 8 8 9 Most Carried 10 | 4 8 10 10 Average Carried 6 | 1 6 6 7 Final Capacity 10 | 8 8 10 5 Final Carried 9 | 2 8 9 2 Class Distribution -------------------- 59% | Scavenger-Mutant 40% | Mutant Dominant Class ---------------- Mutant | -10/Materials Scavenger-Mutant | -9/Materials Scavenger-Mutant | -8/Materials Resources | -11 -10 -9 -8 ----------- Run | Yrd Mat Mat Mat Matter Collected 1027 | 196 143 301 387 Remotely . | . . . . Salvage Created 1869 | . 334 794 741 Parts 131 | . 21 57 53 Haulers Intercepted 1 | . . . 1 Recyclers Shooed 2 | . 1 1 . Parts Field Recycled . | . . . . Retrieved Matter . | . . . . Parts Self-Destructed . | . . . . Prevented . | . . . . Kills | -11 -10 -9 -8 ------- Run | Yrd Mat Mat Mat Combat Hostiles Destroyed 44 | . 9 18 17 Melee 1 | . . . 1 Guns 33 | . 7 17 9 Cannons 2 | . 2 . . AOE 8 | . . 1 7 Classes Destroyed 11 | . 4 3 4 Worker 3 | . 1 . 2 Builder 1 | . . . 1 Tunneler 1 | . . 1 . Hauler 1 | . . . 1 Recycler 1 | . . 1 . Watcher 4 | . 1 1 2 Swarmer 13 | . 3 3 7 Grunt 21 | . 6 10 5 Brawler 2 | . . . 2 Duelist 2 | . . . 2 Sentry 6 | . . 5 1 Best Kill Streak 5 | . 3 4 5 Combat Bots Only 4 | . 3 4 4 Max Kills in Single Turn 3 | . 1 2 3 Gunslinging 1 | . . 1 . Exploded 2 | . . 1 2 Melee 1 | . . . 1 Uniques/NPCs Destroyed . | . . . . Combat | -11 -10 -9 -8 -------- Run | Yrd Mat Mat Mat Hostile Shots Fired 268 | . 43 108 117 Missed 82 | . 11 32 39 Damage Taken 2851 | . 355 1018 1478 Core 786 | . 78 155 553 Absorbed by Shields . | . . . . Regen/Repaired (Parts) 120 | . . 120 . Core Remaining (%) 76 | 100 68 61 . Volleys Fired 141 | . 44 50 47 Largest 2 | . 2 2 2 Hottest 125 | . 125 105 115 Shots Fired 241 | . 82 88 71 Gun 197 | . 52 81 64 Cannon 30 | . 30 . . Launcher 14 | . . 7 7 Special . | . . . . Kinetic 69 | . 3 40 26 Thermal 134 | . 65 36 33 Explosive . | . . . . Electromagnetic 38 | . 14 12 12 Robot Hit Streak 12 | . 10 12 10 Robot Miss Streak 6 | . 6 3 4 Penetration Max . | . . . . Secondary Targets 3 | . . 3 . Max Gunslinging Chain 1 | . . 1 . Shots Hit Robots 163 | . 51 63 49 Core Hits 102 | . 28 37 37 Critical Kills . | . . . . Critical Parts Destroyed . | . . . . Critical Strikes 9 | . 5 1 3 Burn 9 | . 5 1 3 Melee Attacks 6 | . . . 6 Impact . | . . . . Slashing 6 | . . . 6 Piercing . | . . . . Sneak Attacks . | . . . . Combat Hostiles . | . . . . Follow-up Attacks . | . . . . Damage Inflicted 3176 | . 779 1045 1352 Guns 2147 | . 467 897 783 Cannons 312 | . 312 . . Explosions 614 | . . 142 472 Melee 91 | . . . 91 Ramming 12 | . . 6 6 Kinetic 914 | . 28 489 397 Thermal 1425 | . 623 366 436 Explosive . | . . . . Electromagnetic 734 | . 128 184 422 Impact . | . . . . Slashing 91 | . . . 91 Piercing . | . . . . Highest Corruption 23 | . 5 9 23 Average Corruption 9 | . 5 9 9 Corruption Purged . | . . . . Corruption Blocked . | . . . . Effects 27 | . . . 27 Message Errors 10 | . . . 10 Matter Fused 5 | . . . 5 Heat Flow Errors 3 | . . . 3 Energy Discharges 5 | . . . 5 Data Loss (minor) 2 | . . . 2 Data Loss (major) 1 | . . . 1 Weapon Failures 1 | . . . 1 Overload Shots . | . . . . Overflow Damage 52 | . 8 18 26 Projectiles 8 | . 8 . . Explosions 41 | . . 18 23 Melee 3 | . . . 3 Knockbacks . | . . . . Impact . | . . . . Kinetic . | . . . . Secondary . | . . . . Self-Inflicted Damage 254 | . . 126 128 Shots 9 | . . 2 7 Rammed 1 | . . . 1 Targets Rammed 4 | . . 3 1 Kicked 3 | . . 3 . Crushed . | . . . . Highest Temperature 329 | . 329 39 275 Average Temperature 84 | . 88 7 98 Received Heat Transfer 897 | . 144 429 324 Effects 3 | . 2 . 1 Energy Bleed 2 | . 1 . 1 Interference 1 | . 1 . . Siege Activations . | . . . . Robots Corrupted . | . . . . Combat Hostiles . | . . . . Parts Fried . | . . . . Impact Corruptions . | . . . . Robots Melted . | . . . . Combat Hostiles . | . . . . Parts Melted 8 | . 6 1 1 Heat Transferred 3864 | . 1724 904 1236 Parts Sabotaged . | . . . . Parts Stolen . | . . . . Parts Stripped . | . . . . Power Chain Reactions 3 | . . . 3 Alert | -11 -10 -9 -8 ------- Run | Yrd Mat Mat Mat Peak Influence 507 | . 428 473 507 Initial 180 | . . 180 124 Average 255 | . 146 299 325 Maximum Alert Level 2 | . 2 2 2 Low Security (%) 33 | 100 66 16 18 Level 1 54 | . 22 78 58 Level 2 12 | . 11 5 22 Level 3 . | . . . . Level 4 . | . . . . Level 5 . | . . . . High Security . | . . . . Max Security . | . . . . Squads Dispatched 9 | . 3 3 3 Investigation 4 | . 1 3 . Extermination . | . . . . Reinforcement 3 | . 2 . 1 Assault . | . . . . Garrison 2 | . . . 2 Intercept . | . . . . Searches Triggered . | . . . . Construction Impeded 1 | . . . 1 Haulers Reinforced . | . . . . Active Scanning Responses . | . . . . Cargo Convoy Interrupts . | . . . . Stealth | -11 -10 -9 -8 --------- Run | Yrd Mat Mat Mat Distress Signals 4 | . 2 1 1 Communications Jammed . | . . . . Distress Signals . | . . . . Times Spotted 68 | . 20 24 24 Peak Tracking Total 6 | . 5 6 6 Tactical Retreats 1 | . . . 1 Traps | -11 -10 -9 -8 ------- Run | Yrd Mat Mat Mat Traps Triggered 5 | . 2 2 1 Indirectly . | . . . . Trap Hack Attempts . | . . . . Triggered . | . . . . Disarmed . | . . . . Reprogrammed . | . . . . Reused . | . . . . Traps Extracted . | . . . . Installed . | . . . . Triggered . | . . . . Machines | -11 -10 -9 -8 ---------- Run | Yrd Mat Mat Mat Machines Disabled 7 | . 1 3 3 Max in Single Turn 2 | . 1 2 2 Machines Repaired . | . . . . Machines Dismantled . | . . . . Machines Sabotaged . | . . . . Overloaded Fab Kills . | . . . . Hacking | -11 -10 -9 -8 --------- Run | Yrd Mat Mat Mat Machines Accessed 15 | . . 10 5 Terminals 9 | . . 6 3 Fabricators . | . . . . Repair Stations 2 | . . 2 . Recycling Units 2 | . . 1 1 Scanalyzers 2 | . . 1 1 Garrison Access . | . . . . Total Hacks 50 | . . 37 13 Successful 25 | . . 18 7 Failed 25 | . . 19 6 Catastrophic 4 | . . 2 2 Database Lockouts . | . . . . Manual . | . . . . Terminals 32 | . . 24 8 Fabricators . | . . . . Repair Stations 9 | . . 9 . Recycling Units 4 | . . 1 3 Scanalyzers 5 | . . 3 2 Garrison Access . | . . . . Terminal Hacks 15 | . . 12 3 Record 2 | . . 2 . Branch Access Points 1 | . . . 1 Alert Level 2 | . . 1 1 Unreport Threat 1 | . . 1 . Locate Traps 1 | . . 1 . Dispatch Records 2 | . . 2 . Maintenance Status 1 | . . 1 . Surveillance Status 1 | . . . 1 Patrol Status 1 | . . 1 . Recall Investigation 1 | . . 1 . Hauler Manifests 1 | . . 1 . Zone Layout 1 | . . 1 . Fabricator Hacks . | . . . . Repair Station Hacks 5 | . . 5 . Scan Component 3 | . . 3 . Repair 2 | . . 2 . Recycling Unit Hacks 3 | . . 1 2 Report Inventory 2 | . . 1 1 Retrieve Matter 1 | . . . 1 Scanalyzer 2 | . . . 2 Insert Component 1 | . . . 1 Analyze 1 | . . . 1 Garrison Access Hacks . | . . . . Unauthorized Hacks . | . . . . Terminals . | . . . . Fabricators . | . . . . Repair Stations . | . . . . Recycling Units . | . . . . Scanalyzers . | . . . . Garrison Access . | . . . . Data Cores Recovered . | . . . . Used . | . . . . Hacking Detections 13 | . . 9 4 Full Trace Events 4 | . . 3 1 Feedback Events 1 | . . . 1 Corruption 1 | . . . 1 Feedback Blocked . | . . . . Robot Schematics Acquired . | . . . . Robots Built . | . . . . Authchips . | . . . . Time . | . . . . Total Robot Build Rating . | . . . . Part Schematics Acquired 1 | . . . 1 Parts Built . | . . . . Authchips . | . . . . Time . | . . . . Total Part Build Rating . | . . . . Parts Repaired 2 | . . 2 . Time 52 | . . 52 . Parts Recycled . | . . . . Recycled Matter . | . . . . Retrieved Matter . | . . . . Retrieved Components . | . . . . Parts Scanalyzed 1 | . . . 1 Part Schematics Acquired 1 | . . . 1 Parts Damaged . | . . . . Bothacking | -11 -10 -9 -8 ------------ Run | Yrd Mat Mat Mat Used RIF Installer . | . . . . Robots Hacked . | . . . . Non-combat . | . . . . Combat . | . . . . Robot Hacks Applied . | . . . . Relay Couplers Released . | . . . . Fabnet Peak Effective % . | . . . . Robots Rewired . | . . . . Allies Hacked . | . . . . Hacks Repelled . | . . . . Allies | -11 -10 -9 -8 -------- Run | Yrd Mat Mat Mat Total Allies . | . . . . Largest Group . | . . . . Highest-Rated Group . | . . . . Highest-Rated Ally . | . . . . Total Orders . | . . . . Ally Attacks . | . . . . Total Damage . | . . . . Kills . | . . . . Allies Corrupted . | . . . . Allies Melted . | . . . . Intel | -11 -10 -9 -8 ------- Run | Yrd Mat Mat Mat Robot Analysis Total . | . . . . Derelict Logs Recovered . | . . . . Drone Launches . | . . . . Drone Recoveries . | . . . . Exploration | -11 -10 -9 -8 ------------- Run | Yrd Mat Mat Mat Turns Passed 2778 | 83 776 1080 839 Spaces Moved 1869 | 63 507 712 587 Core 70 | 17 . . 53 Treads . | . . . . Legs 1752 | 46 507 712 487 Wheels . | . . . . Hover 47 | . . . 47 Flight . | . . . . Fastest Speed 50 | 50 120 120 50 Average Speed 116 | 110 120 120 110 Slowest Speed 250 | 200 120 120 250 Overloaded Moves . | . . . . Propulsion Burnouts . | . . . . Robots Hopped . | . . . . Cave-ins Triggered . | . . . . Exploration Rate (%) 38 | 3 53 57 39 Regions Visited 3 Branch Regions . Pre-discovered Areas . | . . . . Known Exits Taken 1 | . . 1 . Unknown Exits Taken 2 | 1 1 . . Scrap Searched . | . . . . Spaces Dug . | . . . . Terrain Destroyed 62 | . . 44 18 Melee . | . . . . Projectile . | . . . . AOE 62 | . . 44 18 Terrain Rammed . | . . . . Walls Destroyed . | . . . . Machines Disabled . | . . . . Actions | -11 -10 -9 -8 --------- Run | Yrd Mat Mat Mat Total 2232 | 76 600 854 702 Wait 41 | . 2 32 7 Move 1866 | 62 506 711 587 Hop . | . . . . Pick Up 70 | 8 22 22 18 Fast Attach . | . . . . Attach 49 | 6 6 16 21 Detach 11 | . 3 4 4 Swap 12 | . 3 6 3 Drop 32 | . 14 10 8 Fire 141 | . 44 50 47 Melee 6 | . . . 6 Ram 1 | . . . 1 Kick 3 | . . 3 . Crush . | . . . . Escape Stasis . | . . . . Rewire . | . . . . Trap . | . . . . Miscellaneous . | . . . . Route ------- -11/Scrapyard -10/Materials (discovered 2 exits: *Mat x2) -9/Materials (discovered 2 exits: *Mat x2) -8/Materials (discovered 2 exits: *Fac / Sto) History --------- Turn | Location | Event 20 | -11/Scrapyard | Discovered new exit (range 15) 84 | -11/Scrapyard | Entered Materials 306 | -10/Materials | Build established: Mutant 323 | -10/Materials | Discovered new exit (range 5) 603 | -10/Materials | Discovered new exit (range 15) 860 | -10/Materials | Entered another Materials area 860 | -9/Materials | Evolved 2 slots: Propulsion x2 1242 | -9/Materials | Lost 3 parts (3n) 1331 | -9/Materials | Build established: Scavenger-Mutant 1360 | -9/Materials | Discovered new exit (range 16) 1628 | -9/Materials | Repaired Aluminum Leg? 1726 | -9/Materials | Repaired Aluminum Leg 1885 | -9/Materials | Discovered new exit (range 11) 1940 | -9/Materials | Identified exit to Materials 1940 | -9/Materials | Entered another Materials area 1940 | -8/Materials | Evolved 2 slots: Utility x2 2214 | -8/Materials | Discovered new exit (range 12) 2394 | -8/Materials | Identified exit to Factory 2591 | -8/Materials | Identified exit to Storage 2629 | -8/Materials | Garrison activated, responded to threat 2652 | -8/Materials | System corruption reached 10% 2679 | -8/Materials | Core integrity fell below 50% 2687 | -8/Materials | Core integrity fell below 20% 2723 | -8/Materials | Lost 13 parts (1p4n3u5w) 2779 | -8/Materials | Destroyed by G-47 Trooper with Particle Gun Last Messages --------------- Katana destroyed. System corrupted by crushing effect (+3). Slammed into B-36 Bruiser. K-01 Serf collects debris. Acquired 17 matter. K-01 Serf collects debris. HFS84X%1F16BRVVJ,RJZQ Acquired Prototype Energy Gun. System corrupted: Heat flow error (+259). Acquired Airjet. System corrupted: Component data lost. Acquired Beam Rifle. Identified Hvy. EM Shotgun. Faulty integration triggers meltdown. Airjet damaged (-16). B-36 Bruiser destroyed. JCWP<93YR#0T PUKLGH3V Critical hit (Burn: +37). System corrupted: Substantial component data lost. Map ----- +----------------------------------------------------+ | ????????# ############ ######=*% | | ????????# #??????????# #????# / | | ????????# #????#######+##???# | | ????????+ ##???# #???# | | ????????# T#???#"" """#???# | | ????????# ##???#"" """#???# | | ????????+ #????#"T """#???#### | | ??????####+#####?#"" #??????? | | ??????# #?#"" """#??????? | | ??????# """ #?# """#??????? | | ??????# """ #?# """#??????? | | ??????# """ #?# #??????? | | ??????# """ #?#####/########### | | ??????# """ ##### # | | ??????# + # | | ??????# ! ##### T " | | ??????# #???# # """ """ | | ??????#######"####### ## """ """ | | ??########### ## """ """ | | ??# ## ## | | ??# ## """ ## | | ??# """ ## * """ ########### | | ??#"" """ ## =% """ | | ??#"" """ ## | | ??#"T """ [## | | ??#"" @ ## #######+## | | ??#"" ## ################ | | ??# ## ##/ = # | | ??#######g## # # | | ??????# ! # """ """ """ # | | ??????# = !+ """ """ "???# | | ??????###### # """ """ """??!! | | ???????????###### #!! | | ????????????????###########????! | | ???????????????????????????????### | | | | | | | | | | | | | | | | | | | | | | | | | | | | | | | +----------------------------------------------------+ Best States ------------- Heat Dissipation 41 Energy Generation 14 Energy Capacity 265 Matter Stores 300 Matter Capacity 300 Sight Range 16 Terrain Scan Density 10 Armor Coverage 150 Evasion (%) 55 Targeting Accuracy 14 Item Schematics ----------------- Imp. Ion Engine | -8/Materials | Scanalyzed Robot Schematics ------------------ None Fabricated ------------ Nothing Alien Tech Used ----------------- None Achievements -------------- Everything Is Under Control Challenges ------------ None Game ------ Seed ThermicAuthchipCorpse Manual? 0 Play Time 00:42:00 Cumulative 7.9 hours Start 2024.06.13 @ 17:28:47 End 2024.06.15 @ 16:13:58 Sessions 4 Manual Loads 0 Difficulty Rogue Special Mode None Game No. 10 Rogue 10 Adventurer 0 Explorer 0 Win Type - Total 0 Types 0/0/0/0/0/0/0/0/0 Lore% 14 Gallery% 15 Achievement% 12 Wizard Run 0 Options --------- Layout 1 ASCII 0 Keyboard 1 Movement Arrows Keybinds 0 Fullscreen 1 Font 24/Smallcaps Map View 50x35 Zoom Use 0% Tactical HUD 0 Map Filters NONE Filters NONE Steam 1 RUN: 6ba0e6b6-b80b-4a90-9c2c-96aa19d02e0e